[Event "Titled Tuesday Blitz March 08 Early 2022"]
[White "Ardila, Oscar Humberto"]
[Black "Bowden, Karl"]
[WhiteFideId "4404742"]
[BlackFideId "400548"]
[WhiteElo "1966"]
[BlackElo "2375"]
[Result "1-0"]
[Round "09"]
[TimeControl "180+1"]
[Date "2022.03.09"]
[WhiteClock "0:00:43"]
[BlackClock "0:00:26"]

1. d4 {[%clk 0:02:59]}  Nf6 {[%clk 0:02:59]} 2. c4 {[%clk 0:02:59]}  c5 {[%clk 0:02:59]} 3. d5 {[%clk 0:02:59]}  Ne4 {[%clk 0:02:59]} 4. Qc2 {[%clk 0:02:57]}  Qa5+ {[%clk 0:02:58]} 5. Nd2 {[%clk 0:02:55]}  Nd6 {[%clk 0:02:58]} 6. e4 {[%clk 0:02:49]}  g6 {[%clk 0:02:57]} 7. e5 {[%clk 0:02:46]}  Nf5 {[%clk 0:02:56]} 8. Nf3 {[%clk 0:02:45]}  Bg7 {[%clk 0:02:55]} 9. Bd3 {[%clk 0:02:39]}  d6 {[%clk 0:02:54]} 10. exd6 {[%clk 0:02:25]}  exd6 {[%clk 0:02:53]} 11. O-O {[%clk 0:02:25]}  O-O {[%clk 0:02:52]} 12. Nb3 {[%clk 0:02:20]}  Qd8 {[%clk 0:02:36]} 13. Bg5 {[%clk 0:02:17]}  Bf6 {[%clk 0:02:34]} 14. Bf4 {[%clk 0:02:16]}  a5 {[%clk 0:02:08]} 15. Rfe1 {[%clk 0:02:13]}  a4 {[%clk 0:02:07]} 16. Nbd2 {[%clk 0:02:13]}  a3 {[%clk 0:02:07]} 17. Rab1 {[%clk 0:02:09]}  axb2 {[%clk 0:02:05]} 18. a4 {[%clk 0:02:06]}  Na6 {[%clk 0:02:03]} 19. Ne4 {[%clk 0:02:02]}  Bg7 {[%clk 0:01:53]} 20. Bg5 {[%clk 0:02:00]}  Qc7 {[%clk 0:01:42]} 21. g4 {[%clk 0:01:56]}  Nd4 {[%clk 0:01:36]} 22. Nxd4 {[%clk 0:01:56]}  cxd4 {[%clk 0:01:36]} 23. Rxb2 {[%clk 0:01:42]}  f6 {[%clk 0:01:25]} 24. Bf4 {[%clk 0:01:40]}  Bxg4 {[%clk 0:00:50]} 25. Bxd6 {[%clk 0:01:38]}  Qd7 {[%clk 0:00:49]} 26. Bxf8 {[%clk 0:01:31]}  Rxf8 {[%clk 0:00:49]} 27. c5 {[%clk 0:01:25]}  Bf3 {[%clk 0:00:46]} 28. d6 {[%clk 0:01:02]}  Rc8 {[%clk 0:00:32]} 29. Qb3+ {[%clk 0:00:50]}  Kh8 {[%clk 0:00:31]} 30. Bf1 {[%clk 0:00:50]}  Nxc5 {[%clk 0:00:29]} 31. Qxf3 {[%clk 0:00:49]}  Nxa4 {[%clk 0:00:26]} 32. Bb5 {[%clk 0:00:43]} 1-0


[Site "https://www.chess.com"]

[Event "Titled Tuesday Blitz March 08 Early 2022"]
[White "Beerdsen, Thomas"]
[Black "Samadov, Read"]
[WhiteFideId "1030108"]
[BlackFideId "13417444"]
[WhiteElo "2585"]
[BlackElo "2084"]
[Result "1-0"]
[Round "09"]
[TimeControl "180+1"]
[Date "2022.03.08"]
[WhiteClock "0:00:04"]
[BlackClock "0:00:04"]

1. e4 {[%clk 0:03:00]}  c5 {[%clk 0:02:59]} 2. Nf3 {[%clk 0:03:01]}  d6 {[%clk 0:02:57]} 3. d4 {[%clk 0:03:01]}  cxd4 {[%clk 0:02:57]} 4. Nxd4 {[%clk 0:03:02]}  Nf6 {[%clk 0:02:58]} 5. Nc3 {[%clk 0:03:03]}  a6 {[%clk 0:02:58]} 6. a3 {[%clk 0:03:04]}  Nc6 {[%clk 0:02:53]} 7. Bc4 {[%clk 0:03:01]}  e6 {[%clk 0:02:53]} 8. Ba2 {[%clk 0:03:01]}  Be7 {[%clk 0:02:52]} 9. Nxc6 {[%clk 0:02:57]}  bxc6 {[%clk 0:02:52]} 10. g4 {[%clk 0:02:58]}  d5 {[%clk 0:02:44]} 11. g5 {[%clk 0:02:54]}  Nd7 {[%clk 0:02:24]} 12. h4 {[%clk 0:02:38]}  O-O {[%clk 0:02:17]} 13. Rg1 {[%clk 0:02:31]}  Nc5 {[%clk 0:02:14]} 14. Be3 {[%clk 0:02:24]}  a5 {[%clk 0:02:07]} 15. h5 {[%clk 0:02:21]}  Rb8 {[%clk 0:02:02]} 16. Rb1 {[%clk 0:02:13]}  Ba6 {[%clk 0:01:35]} 17. h6 {[%clk 0:01:59]}  Re8 {[%clk 0:01:18]} 18. Qd4 {[%clk 0:01:54]}  e5 {[%clk 0:01:14]} 19. Qxe5 {[%clk 0:01:50]}  Bf6 {[%clk 0:01:13]} 20. Qxe8+ {[%clk 0:01:32]}  Qxe8 {[%clk 0:01:13]} 21. gxf6 {[%clk 0:01:33]}  Nxe4 {[%clk 0:01:11]} 22. Rxg7+ {[%clk 0:01:30]}  Kh8 {[%clk 0:01:11]} 23. Rg4 {[%clk 0:00:14]}  Nxc3 {[%clk 0:00:50]} 24. bxc3 {[%clk 0:00:14]}  Rxb1+ {[%clk 0:00:50]} 25. Bxb1 {[%clk 0:00:15]}  Qb8 {[%clk 0:00:49]} 26. Ba2 {[%clk 0:00:16]}  Qb2 {[%clk 0:00:41]} 27. Bb3 {[%clk 0:00:16]}  Qxc3+ {[%clk 0:00:39]} 28. Kd1 {[%clk 0:00:16]}  Bc8 {[%clk 0:00:14]} 29. Rd4 {[%clk 0:00:10]}  c5 {[%clk 0:00:14]} 30. Rxd5 {[%clk 0:00:07]}  Bg4+ {[%clk 0:00:12]} 31. Kc1 {[%clk 0:00:08]}  Qa1+ {[%clk 0:00:08]} 32. Kd2 {[%clk 0:00:08]}  Qxf6 {[%clk 0:00:09]} 33. Bxc5 {[%clk 0:00:07]}  Qxh6+ {[%clk 0:00:08]} 34. Be3 {[%clk 0:00:07]}  Qc6 {[%clk 0:00:04]} 35. Bd4+ {[%clk 0:00:06]}  f6 {[%clk 0:00:05]} 36. Rd8+ {[%clk 0:00:06]}  Kg7 {[%clk 0:00:06]} 37. Rg8+ {[%clk 0:00:07]}  Kh6 {[%clk 0:00:06]} 38. Rxg4 {[%clk 0:00:08]}  Qf3 {[%clk 0:00:06]} 39. Be3+ {[%clk 0:00:07]}  Kh5 {[%clk 0:00:05]} 40. Rg3 {[%clk 0:00:06]}  Qe4 {[%clk 0:00:05]} 41. Bf7+ {[%clk 0:00:05]}  Kh4 {[%clk 0:00:06]} 42. Bb3 {[%clk 0:00:04]}  a4 {[%clk 0:00:04]} 43. Ba2 {[%clk 0:00:05]}  f5 {[%clk 0:00:04]} 44. Bg5+ {[%clk 0:00:04]}  Kh5 {[%clk 0:00:04]} 45. Bf7# {[%clk 0:00:04]} 1-0


[Site "https://www.chess.com"]

[Event "Titled Tuesday Blitz March 08 Early 2022"]
[White "Bettalli, Francesco"]
[Black "Zhu, Jiner"]
[WhiteFideId "2816453"]
[BlackFideId "8608059"]
[WhiteElo "2216"]
[BlackElo "2281"]
[Result "0-1"]
[Round "09"]
[TimeControl "180+1"]
[Date "2022.03.09"]
[WhiteClock "0:00:06"]
[BlackClock "0:00:53"]

1. d4 {[%clk 0:03:00]}  Nf6 {[%clk 0:02:59]} 2. Nc3 {[%clk 0:03:01]}  d5 {[%clk 0:02:59]} 3. Bf4 {[%clk 0:03:01]}  e6 {[%clk 0:02:58]} 4. Nb5 {[%clk 0:02:47]}  Na6 {[%clk 0:02:56]} 5. e3 {[%clk 0:02:46]}  Be7 {[%clk 0:02:51]} 6. Nf3 {[%clk 0:02:44]}  O-O {[%clk 0:02:50]} 7. a3 {[%clk 0:02:40]}  c6 {[%clk 0:02:37]} 8. Nc3 {[%clk 0:02:39]}  Nc7 {[%clk 0:02:36]} 9. Bd3 {[%clk 0:02:36]}  b6 {[%clk 0:02:31]} 10. O-O {[%clk 0:02:36]}  Bb7 {[%clk 0:02:31]} 11. e4 {[%clk 0:02:35]}  dxe4 {[%clk 0:02:29]} 12. Nxe4 {[%clk 0:02:36]}  Ncd5 {[%clk 0:02:15]} 13. Nxf6+ {[%clk 0:02:35]}  Nxf6 {[%clk 0:02:12]} 14. Qe2 {[%clk 0:02:33]}  c5 {[%clk 0:02:06]} 15. dxc5 {[%clk 0:01:30]}  bxc5 {[%clk 0:02:05]} 16. Rad1 {[%clk 0:01:28]}  Qb6 {[%clk 0:01:56]} 17. b3 {[%clk 0:01:28]}  Qc6 {[%clk 0:01:52]} 18. Bb5 {[%clk 0:01:25]}  Qb6 {[%clk 0:01:43]} 19. Ne5 {[%clk 0:01:24]}  Rad8 {[%clk 0:01:34]} 20. a4 {[%clk 0:01:21]}  Nd5 {[%clk 0:01:29]} 21. Bd2 {[%clk 0:01:19]}  Qc7 {[%clk 0:01:25]} 22. Nc4 {[%clk 0:01:07]}  Nf4 {[%clk 0:01:21]} 23. Qg4 {[%clk 0:01:05]}  Nxg2 {[%clk 0:01:17]} 24. Ba5 {[%clk 0:00:51]}  Qf4 {[%clk 0:01:16]} 25. Qg3 {[%clk 0:00:41]}  Rxd1 {[%clk 0:01:13]} 26. Rxd1 {[%clk 0:00:39]}  Qf5 {[%clk 0:01:05]} 27. Rd7 {[%clk 0:00:27]}  Bh4 {[%clk 0:01:05]} 28. Ne3 {[%clk 0:00:18]}  Nxe3 {[%clk 0:00:56]} 29. Qxe3 {[%clk 0:00:11]}  Qg4+ {[%clk 0:00:55]} 30. Kf1 {[%clk 0:00:12]}  Bf3 {[%clk 0:00:54]} 31. Bc3 {[%clk 0:00:05]}  Qg2+ {[%clk 0:00:52]} 32. Ke1 {[%clk 0:00:06]}  Qg1+ {[%clk 0:00:53]} 33. Kd2 {[%clk 0:00:06]}  Bg5 {[%clk 0:00:53]} 0-1


[Site "https://www.chess.com"]

[Event "Titled Tuesday Blitz March 08 Early 2022"]
[White "Bodnaruk, Anastasia"]
[Black "Fathy, Elameir"]
[WhiteFideId "4181751"]
[BlackFideId "10600396"]
[WhiteElo "2393"]
[BlackElo "2311"]
[Result "1-0"]
[Round "09"]
[TimeControl "180+1"]
[Date "2022.03.09"]
[WhiteClock "0:01:01"]
[BlackClock "0:00:24"]

1. e4 {[%clk 0:03:00]}  c6 {[%clk 0:03:00]} 2. d4 {[%clk 0:02:58]}  d5 {[%clk 0:03:00]} 3. e5 {[%clk 0:02:58]}  Bf5 {[%clk 0:03:00]} 4. Nf3 {[%clk 0:02:59]}  e6 {[%clk 0:03:00]} 5. Be2 {[%clk 0:02:59]}  c5 {[%clk 0:03:01]} 6. O-O {[%clk 0:02:58]}  Nc6 {[%clk 0:03:00]} 7. c3 {[%clk 0:02:58]}  cxd4 {[%clk 0:02:58]} 8. Nxd4 {[%clk 0:02:52]}  Nge7 {[%clk 0:02:56]} 9. Nxf5 {[%clk 0:02:51]}  Nxf5 {[%clk 0:02:56]} 10. Bd3 {[%clk 0:02:49]}  g6 {[%clk 0:02:57]} 11. Re1 {[%clk 0:02:43]}  Bg7 {[%clk 0:02:56]} 12. f4 {[%clk 0:02:40]}  O-O {[%clk 0:02:56]} 13. Na3 {[%clk 0:02:32]}  f6 {[%clk 0:02:49]} 14. exf6 {[%clk 0:02:30]}  Qxf6 {[%clk 0:02:50]} 15. Nc2 {[%clk 0:02:26]}  Rad8 {[%clk 0:02:44]} 16. Qf3 {[%clk 0:02:23]}  e5 {[%clk 0:02:29]} 17. Bb5 {[%clk 0:02:10]}  e4 {[%clk 0:02:28]} 18. Qf2 {[%clk 0:02:07]}  a6 {[%clk 0:02:28]} 19. Bxc6 {[%clk 0:02:01]}  Qxc6 {[%clk 0:02:25]} 20. Be3 {[%clk 0:01:58]}  Nxe3 {[%clk 0:01:53]} 21. Qxe3 {[%clk 0:01:56]}  Qc7 {[%clk 0:01:41]} 22. Rf1 {[%clk 0:01:54]}  Qc4 {[%clk 0:01:20]} 23. Rfd1 {[%clk 0:01:36]}  Qc7 {[%clk 0:01:17]} 24. g3 {[%clk 0:01:33]}  g5 {[%clk 0:01:08]} 25. fxg5 {[%clk 0:01:24]}  Rf3 {[%clk 0:01:09]} 26. Qe2 {[%clk 0:01:24]}  Qb6+ {[%clk 0:01:09]} 27. Nd4 {[%clk 0:01:24]}  Rdf8 {[%clk 0:00:55]} 28. Rab1 {[%clk 0:01:06]}  e3 {[%clk 0:00:24]} 29. Nxf3 {[%clk 0:01:01]} 1-0


[Site "https://www.chess.com"]

[Event "Titled Tuesday Blitz March 08 Early 2022"]
[White "Borodavkin, Anatoly"]
[Black "Berezin, Viktor"]
[WhiteFideId "14150662"]
[BlackFideId "14107872"]
[WhiteElo "1845"]
[BlackElo "2310"]
[Result "1-0"]
[Round "09"]
[TimeControl "180+1"]
[Date "2022.03.09"]
[WhiteClock "0:00:05"]
[BlackClock "0:00:11"]

1. e4 {[%clk 0:03:00]}  d5 {[%clk 0:02:58]} 2. exd5 {[%clk 0:02:59]}  Nf6 {[%clk 0:02:54]} 3. d4 {[%clk 0:02:57]}  Bg4 {[%clk 0:02:50]} 4. Nf3 {[%clk 0:02:42]}  Nxd5 {[%clk 0:02:40]} 5. c4 {[%clk 0:02:31]}  Nf6 {[%clk 0:02:34]} 6. Be2 {[%clk 0:02:14]}  e6 {[%clk 0:02:30]} 7. h3 {[%clk 0:02:14]}  Bh5 {[%clk 0:02:25]} 8. Nc3 {[%clk 0:02:10]}  c5 {[%clk 0:02:22]} 9. d5 {[%clk 0:02:00]}  exd5 {[%clk 0:02:18]} 10. cxd5 {[%clk 0:02:00]}  Bd6 {[%clk 0:02:18]} 11. O-O {[%clk 0:01:59]}  O-O {[%clk 0:02:08]} 12. Nb5 {[%clk 0:01:53]}  a6 {[%clk 0:02:04]} 13. Nxd6 {[%clk 0:01:34]}  Qxd6 {[%clk 0:02:05]} 14. g4 {[%clk 0:01:30]}  Bg6 {[%clk 0:02:01]} 15. Bg5 {[%clk 0:01:01]}  Ne4 {[%clk 0:01:50]} 16. Be3 {[%clk 0:00:54]}  Rd8 {[%clk 0:01:43]} 17. Rc1 {[%clk 0:00:52]}  Nd7 {[%clk 0:01:24]} 18. Qb3 {[%clk 0:00:36]}  b5 {[%clk 0:01:20]} 19. Rfd1 {[%clk 0:00:33]}  c4 {[%clk 0:01:14]} 20. Qa3 {[%clk 0:00:30]}  Ndc5 {[%clk 0:00:58]} 21. Nh4 {[%clk 0:00:22]}  Rac8 {[%clk 0:00:48]} 22. Nxg6 {[%clk 0:00:21]}  hxg6 {[%clk 0:00:42]} 23. b3 {[%clk 0:00:16]}  cxb3 {[%clk 0:00:27]} 24. axb3 {[%clk 0:00:16]}  Qf6 {[%clk 0:00:17]} 25. Bxc5 {[%clk 0:00:13]}  Qf4 {[%clk 0:00:13]} 26. Be3 {[%clk 0:00:13]}  Qe5 {[%clk 0:00:13]} 27. Qa1 {[%clk 0:00:12]}  Nc3 {[%clk 0:00:13]} 28. Rxc3 {[%clk 0:00:07]}  Rxc3 {[%clk 0:00:12]} 29. Bd4 {[%clk 0:00:08]}  Qxe2 {[%clk 0:00:12]} 30. Bxc3 {[%clk 0:00:05]}  Rc8 {[%clk 0:00:12]} 31. Rd2 {[%clk 0:00:04]}  Qe1+ {[%clk 0:00:12]} 32. Qxe1 {[%clk 0:00:04]}  Rxc3 {[%clk 0:00:11]} 33. Qe8+ {[%clk 0:00:04]}  Kh7 {[%clk 0:00:11]} 34. g5 {[%clk 0:00:05]}  Rxh3 {[%clk 0:00:11]} 35. Kg2 {[%clk 0:00:05]}  Rh4 {[%clk 0:00:12]} 36. Rd1 {[%clk 0:00:06]}  Rg4+ {[%clk 0:00:12]} 37. Kf3 {[%clk 0:00:05]}  Rh4 {[%clk 0:00:12]} 38. Rg1 {[%clk 0:00:05]}  a5 {[%clk 0:00:11]} 39. Qxf7 {[%clk 0:00:05]} 1-0


[Site "https://www.chess.com"]

[Event "Titled Tuesday Blitz March 08 Early 2022"]
[White "Bortnyk, Olexandr"]
[Black "Madaminov, Mukhiddin"]
[WhiteFideId "14120828"]
[BlackFideId "14210703"]
[WhiteElo "2723"]
[BlackElo "1916"]
[Result "1-0"]
[Round "09"]
[TimeControl "180+1"]
[Date "2022.03.08"]
[WhiteClock "0:00:18"]
[BlackClock "0:00:01"]

1. e4 {[%clk 0:03:00]}  e5 {[%clk 0:02:38]} 2. Nf3 {[%clk 0:02:58]}  Nc6 {[%clk 0:02:38]} 3. Bb5 {[%clk 0:02:58]}  a6 {[%clk 0:02:38]} 4. Ba4 {[%clk 0:02:58]}  Nf6 {[%clk 0:02:39]} 5. Nc3 {[%clk 0:02:58]}  Bb4 {[%clk 0:02:28]} 6. Nd5 {[%clk 0:02:50]}  Be7 {[%clk 0:02:08]} 7. O-O {[%clk 0:02:36]}  O-O {[%clk 0:01:46]} 8. Re1 {[%clk 0:02:28]}  d6 {[%clk 0:01:39]} 9. Bxc6 {[%clk 0:02:24]}  bxc6 {[%clk 0:01:38]} 10. Nxe7+ {[%clk 0:02:25]}  Qxe7 {[%clk 0:01:39]} 11. h3 {[%clk 0:02:25]}  c5 {[%clk 0:01:32]} 12. c3 {[%clk 0:02:01]}  c4 {[%clk 0:01:26]} 13. b3 {[%clk 0:01:59]}  Be6 {[%clk 0:01:06]} 14. Ba3 {[%clk 0:01:59]}  Rfb8 {[%clk 0:00:54]} 15. Nxe5 {[%clk 0:01:59]}  cxb3 {[%clk 0:00:11]} 16. Nc6 {[%clk 0:01:57]}  Qe8 {[%clk 0:00:11]} 17. Nxb8 {[%clk 0:01:57]}  bxa2 {[%clk 0:00:04]} 18. d4 {[%clk 0:01:56]}  Bc4 {[%clk 0:00:04]} 19. e5 {[%clk 0:01:56]}  Nd5 {[%clk 0:00:04]} 20. exd6 {[%clk 0:01:54]}  Qxb8 {[%clk 0:00:05]} 21. d7 {[%clk 0:00:52]}  Qb5 {[%clk 0:00:05]} 22. Qg4 {[%clk 0:00:49]}  Nf6 {[%clk 0:00:05]} 23. Qf3 {[%clk 0:00:49]}  Bd5 {[%clk 0:00:03]} 24. c4 {[%clk 0:00:44]}  Qxc4 {[%clk 0:00:02]} 25. Qxf6 {[%clk 0:00:44]}  gxf6 {[%clk 0:00:02]} 26. Re8+ {[%clk 0:00:45]}  Kg7 {[%clk 0:00:02]} 27. Rxa8 {[%clk 0:00:46]}  Qxd4 {[%clk 0:00:03]} 28. Rg8+ {[%clk 0:00:39]}  Kxg8 {[%clk 0:00:02]} 29. d8=Q+ {[%clk 0:00:38]}  Kg7 {[%clk 0:00:03]} 30. Qf8+ {[%clk 0:00:30]}  Kg6 {[%clk 0:00:03]} 31. Qg8+ {[%clk 0:00:30]}  Kf5 {[%clk 0:00:04]} 32. Qg4+ {[%clk 0:00:27]}  Qxg4 {[%clk 0:00:02]} 33. hxg4+ {[%clk 0:00:27]}  Ke4 {[%clk 0:00:02]} 34. Bb2 {[%clk 0:00:26]}  f5 {[%clk 0:00:02]} 35. f3+ {[%clk 0:00:24]}  Kd3 {[%clk 0:00:02]} 36. gxf5 {[%clk 0:00:19]}  Kc2 {[%clk 0:00:03]} 37. Be5 {[%clk 0:00:19]}  c5 {[%clk 0:00:03]} 38. Re1 {[%clk 0:00:19]}  c4 {[%clk 0:00:02]} 39. Ba1 {[%clk 0:00:19]}  c3 {[%clk 0:00:02]} 40. Re3 {[%clk 0:00:19]}  Kb1 {[%clk 0:00:01]} 41. Bxc3 {[%clk 0:00:18]} 1-0


[Site "https://www.chess.com"]

[Event "Titled Tuesday Blitz March 08 Early 2022"]
[White "Bures, Vit"]
[Black "Pinheiro, Iung Alicio de O."]
[WhiteFideId "309052"]
[BlackFideId "2104350"]
[WhiteElo "2118"]
[BlackElo "2553"]
[Result "0-1"]
[Round "09"]
[TimeControl "180+1"]
[Date "2022.03.09"]
[WhiteClock "0:00:02"]
[BlackClock "0:00:11"]

1. d4 {[%clk 0:02:54]}  Nf6 {[%clk 0:02:59]} 2. c4 {[%clk 0:02:54]}  g6 {[%clk 0:02:59]} 3. Nc3 {[%clk 0:02:54]}  d5 {[%clk 0:02:59]} 4. cxd5 {[%clk 0:02:55]}  Nxd5 {[%clk 0:03:00]} 5. e4 {[%clk 0:02:56]}  Nxc3 {[%clk 0:03:00]} 6. bxc3 {[%clk 0:02:56]}  Bg7 {[%clk 0:03:01]} 7. Nf3 {[%clk 0:02:57]}  c5 {[%clk 0:03:02]} 8. Be3 {[%clk 0:02:56]}  Qa5 {[%clk 0:03:00]} 9. Qd2 {[%clk 0:02:56]}  O-O {[%clk 0:03:00]} 10. Rc1 {[%clk 0:02:53]}  Rd8 {[%clk 0:02:59]} 11. d5 {[%clk 0:02:52]}  e6 {[%clk 0:02:57]} 12. Bg5 {[%clk 0:02:52]}  f6 {[%clk 0:02:56]} 13. Be3 {[%clk 0:02:52]}  Qa4 {[%clk 0:02:34]} 14. c4 {[%clk 0:02:47]}  exd5 {[%clk 0:02:34]} 15. exd5 {[%clk 0:02:45]}  b6 {[%clk 0:02:22]} 16. Be2 {[%clk 0:02:41]}  Na6 {[%clk 0:02:12]} 17. O-O {[%clk 0:02:33]}  Nb4 {[%clk 0:02:06]} 18. a3 {[%clk 0:02:06]}  Qxa3 {[%clk 0:01:53]} 19. Ra1 {[%clk 0:02:04]}  Qb3 {[%clk 0:01:53]} 20. Rfb1 {[%clk 0:01:58]}  Qc2 {[%clk 0:01:52]} 21. Qe1 {[%clk 0:01:48]}  Qe4 {[%clk 0:01:31]} 22. Nd2 {[%clk 0:01:41]}  Qe7 {[%clk 0:01:26]} 23. Rxb4 {[%clk 0:01:34]}  cxb4 {[%clk 0:01:25]} 24. Bxb6 {[%clk 0:01:35]}  Re8 {[%clk 0:01:23]} 25. Be3 {[%clk 0:01:29]}  f5 {[%clk 0:01:19]} 26. c5 {[%clk 0:01:21]}  Bxa1 {[%clk 0:00:58]} 27. Qxa1 {[%clk 0:01:21]}  Qe5 {[%clk 0:00:58]} 28. Qa2 {[%clk 0:01:22]}  f4 {[%clk 0:00:48]} 29. Nf3 {[%clk 0:01:21]}  Qc3 {[%clk 0:00:42]} 30. Bd4 {[%clk 0:01:02]}  b3 {[%clk 0:00:32]} 31. Qa4 {[%clk 0:00:51]}  Qc1+ {[%clk 0:00:26]} 32. Bf1 {[%clk 0:00:52]}  Bf5 {[%clk 0:00:27]} 33. Qxb3 {[%clk 0:00:44]}  Rab8 {[%clk 0:00:26]} 34. Qc3 {[%clk 0:00:25]}  Rb1 {[%clk 0:00:22]} 35. Nd2 {[%clk 0:00:18]}  Qxc3 {[%clk 0:00:19]} 36. Bxc3 {[%clk 0:00:19]}  Rc1 {[%clk 0:00:20]} 37. Bb4 {[%clk 0:00:07]}  a5 {[%clk 0:00:13]} 38. Bxa5 {[%clk 0:00:06]}  Rxc5 {[%clk 0:00:14]} 39. Bb4 {[%clk 0:00:04]}  Rc1 {[%clk 0:00:14]} 40. d6 {[%clk 0:00:03]}  Bd3 {[%clk 0:00:14]} 41. f3 {[%clk 0:00:03]}  Rb8 {[%clk 0:00:12]} 42. d7 {[%clk 0:00:02]}  Rd8 {[%clk 0:00:11]} 43. Kf2 {[%clk 0:00:02]}  Bxf1 {[%clk 0:00:11]} 44. Nxf1 {[%clk 0:00:02]}  Rxd7 {[%clk 0:00:11]} 45. Nd2 {[%clk 0:00:02]}  Rc2 {[%clk 0:00:11]} 0-1


[Site "https://www.chess.com"]

[Event "Titled Tuesday Blitz March 08 Early 2022"]
[White "Chernomordik, Pavel"]
[Black "Atakhan, Abtin"]
[WhiteFideId "2804530"]
[BlackFideId "22502203"]
[WhiteElo "2249"]
[BlackElo "2119"]
[Result "0-1"]
[Round "09"]
[TimeControl "180+1"]
[Date "2022.03.09"]
[WhiteClock "0:00:02"]
[BlackClock "0:00:25"]

1. e4 {[%clk 0:03:00]}  c6 {[%clk 0:02:59]} 2. Nc3 {[%clk 0:02:59]}  d5 {[%clk 0:03:00]} 3. Qf3 {[%clk 0:02:58]}  e6 {[%clk 0:02:50]} 4. d3 {[%clk 0:02:57]}  Ne7 {[%clk 0:02:48]} 5. Qg3 {[%clk 0:02:56]}  Ng6 {[%clk 0:02:48]} 6. h4 {[%clk 0:02:50]}  Bd6 {[%clk 0:02:47]} 7. f4 {[%clk 0:02:49]}  h5 {[%clk 0:02:44]} 8. Nf3 {[%clk 0:02:40]}  Nd7 {[%clk 0:02:35]} 9. d4 {[%clk 0:02:27]}  dxe4 {[%clk 0:02:30]} 10. Nxe4 {[%clk 0:02:26]}  Nf6 {[%clk 0:02:29]} 11. Neg5 {[%clk 0:02:17]}  Qa5+ {[%clk 0:02:16]} 12. c3 {[%clk 0:02:16]}  Qf5 {[%clk 0:02:07]} 13. Ne5 {[%clk 0:02:12]}  Bxe5 {[%clk 0:02:00]} 14. fxe5 {[%clk 0:02:05]}  Ne4 {[%clk 0:02:00]} 15. Qe3 {[%clk 0:01:49]}  Nxg5 {[%clk 0:01:54]} 16. hxg5 {[%clk 0:01:49]}  Qg4 {[%clk 0:01:50]} 17. Kf2 {[%clk 0:01:19]}  Nh4 {[%clk 0:01:50]} 18. g3 {[%clk 0:01:09]}  Nf5 {[%clk 0:01:39]} 19. Qf3 {[%clk 0:01:01]}  Qxf3+ {[%clk 0:01:38]} 20. Kxf3 {[%clk 0:01:00]}  c5 {[%clk 0:01:38]} 21. dxc5 {[%clk 0:00:55]}  b6 {[%clk 0:01:38]} 22. Bd3 {[%clk 0:00:55]}  Bb7+ {[%clk 0:01:36]} 23. Be4 {[%clk 0:00:51]}  Bxe4+ {[%clk 0:01:37]} 24. Kxe4 {[%clk 0:00:51]}  Nxg3+ {[%clk 0:01:37]} 25. Kf3 {[%clk 0:00:51]}  Nxh1 {[%clk 0:01:38]} 26. Kg2 {[%clk 0:00:50]}  bxc5 {[%clk 0:01:35]} 27. Kxh1 {[%clk 0:00:47]}  Rd8 {[%clk 0:01:34]} 28. Be3 {[%clk 0:00:46]}  Rd5 {[%clk 0:01:35]} 29. Kg2 {[%clk 0:00:41]}  Rxe5 {[%clk 0:01:34]} 30. Kf3 {[%clk 0:00:41]}  Ke7 {[%clk 0:01:32]} 31. b4 {[%clk 0:00:38]}  cxb4 {[%clk 0:01:27]} 32. cxb4 {[%clk 0:00:37]}  Rb8 {[%clk 0:01:17]} 33. Bc5+ {[%clk 0:00:35]}  Ke8 {[%clk 0:01:15]} 34. a3 {[%clk 0:00:31]}  Rxg5 {[%clk 0:01:13]} 35. Bxa7 {[%clk 0:00:31]}  Ra8 {[%clk 0:01:12]} 36. Be3 {[%clk 0:00:30]}  Rb5 {[%clk 0:01:08]} 37. Bc5 {[%clk 0:00:26]}  Ra4 {[%clk 0:01:07]} 38. Ke3 {[%clk 0:00:22]}  Kd7 {[%clk 0:00:58]} 39. Kd3 {[%clk 0:00:22]}  Kc6 {[%clk 0:00:57]} 40. Kc3 {[%clk 0:00:22]}  Rxc5+ {[%clk 0:00:55]} 41. bxc5 {[%clk 0:00:21]}  Kxc5 {[%clk 0:00:56]} 42. Kb3 {[%clk 0:00:21]}  Rg4 {[%clk 0:00:54]} 43. a4 {[%clk 0:00:21]}  Rg3+ {[%clk 0:00:52]} 44. Kc2 {[%clk 0:00:20]}  Kb6 {[%clk 0:00:46]} 45. Rf1 {[%clk 0:00:17]}  f6 {[%clk 0:00:44]} 46. Rh1 {[%clk 0:00:14]}  Rg5 {[%clk 0:00:38]} 47. Rh4 {[%clk 0:00:08]}  Ka5 {[%clk 0:00:33]} 48. Kb3 {[%clk 0:00:07]}  Rg3+ {[%clk 0:00:32]} 49. Kc2 {[%clk 0:00:06]}  g6 {[%clk 0:00:28]} 50. Rd4 {[%clk 0:00:02]}  Rg4 {[%clk 0:00:25]} 0-1


[Site "https://www.chess.com"]